[Event "Titled Tuesday Blitz June 27 Late 2023"]
[White "Cuenca Jimenez, Jose Fernando"]
[Black "Urbina Perez, Juan Antonio"]
[WhiteFideId "2255570"]
[BlackFideId "2217368"]
[WhiteElo "2669"]
[BlackElo "2485"]
[Result "1-0"]
[Round "3"]
[TimeControl "180+2"]
[Date "2023.06.27"]
[WhiteClock "0:01:17"]
[BlackClock "0:00:10"]
[Board "78"]

1. c4 {[%clk 0:03:00]}  c6 {[%clk 0:02:58]} 2. d4 {[%clk 0:02:59]}  d5 {[%clk 0:02:59]} 3. Nc3 {[%clk 0:03:00]}  Nf6 {[%clk 0:02:59]} 4. e3 {[%clk 0:02:59]}  a6 {[%clk 0:03:00]} 5. c5 {[%clk 0:02:59]}  Bf5 {[%clk 0:02:59]} 6. f4 {[%clk 0:02:45]}  Nbd7 {[%clk 0:02:50]} 7. Bd2 {[%clk 0:02:44]}  Ne4 {[%clk 0:02:36]} 8. Nf3 {[%clk 0:02:41]}  Nxd2 {[%clk 0:02:23]} 9. Qxd2 {[%clk 0:02:41]}  e6 {[%clk 0:02:23]} 10. Bd3 {[%clk 0:02:41]}  Bxd3 {[%clk 0:02:22]} 11. Qxd3 {[%clk 0:02:42]}  Be7 {[%clk 0:02:19]} 12. O-O {[%clk 0:02:42]}  O-O {[%clk 0:02:18]} 13. b4 {[%clk 0:02:42]}  b6 {[%clk 0:02:14]} 14. a3 {[%clk 0:02:40]}  a5 {[%clk 0:02:12]} 15. h3 {[%clk 0:02:26]}  Qc7 {[%clk 0:02:08]} 16. Rfc1 {[%clk 0:02:26]}  Qb7 {[%clk 0:01:55]} 17. Rab1 {[%clk 0:02:21]}  axb4 {[%clk 0:01:53]} 18. axb4 {[%clk 0:02:22]}  b5 {[%clk 0:01:53]} 19. Nd2 {[%clk 0:02:18]}  Ra3 {[%clk 0:01:50]} 20. Nb3 {[%clk 0:02:18]}  Rfa8 {[%clk 0:01:34]} 21. Na5 {[%clk 0:02:14]}  Qc8 {[%clk 0:01:34]} 22. Qc2 {[%clk 0:02:12]}  Bd8 {[%clk 0:01:34]} 23. Qb2 {[%clk 0:02:11]}  R3xa5 {[%clk 0:01:33]} 24. bxa5 {[%clk 0:02:10]}  Bxa5 {[%clk 0:01:34]} 25. Na2 {[%clk 0:02:10]}  f6 {[%clk 0:01:26]} 26. Ra1 {[%clk 0:02:09]}  Rb8 {[%clk 0:01:15]} 27. Nb4 {[%clk 0:02:07]}  Bxb4 {[%clk 0:01:11]} 28. Qxb4 {[%clk 0:02:08]}  e5 {[%clk 0:01:11]} 29. Ra7 {[%clk 0:02:05]}  Nf8 {[%clk 0:01:09]} 30. dxe5 {[%clk 0:02:03]}  fxe5 {[%clk 0:01:08]} 31. fxe5 {[%clk 0:02:03]}  Ng6 {[%clk 0:01:04]} 32. Qd4 {[%clk 0:01:57]}  Qe6 {[%clk 0:01:03]} 33. Rca1 {[%clk 0:01:56]}  Nxe5 {[%clk 0:00:59]} 34. Ra8 {[%clk 0:01:56]}  Rxa8 {[%clk 0:00:57]} 35. Rxa8+ {[%clk 0:01:57]}  Kf7 {[%clk 0:00:57]} 36. Qf4+ {[%clk 0:01:56]}  Qf6 {[%clk 0:00:55]} 37. Kf1 {[%clk 0:01:48]}  Qxf4+ {[%clk 0:00:48]} 38. exf4 {[%clk 0:01:48]}  Nd3 {[%clk 0:00:48]} 39. Rc8 {[%clk 0:01:44]}  Nxc5 {[%clk 0:00:42]} 40. Rxc6 {[%clk 0:01:44]}  Nd3 {[%clk 0:00:42]} 41. Rc3 {[%clk 0:01:40]}  Nb2 {[%clk 0:00:25]} 42. Rb3 {[%clk 0:01:39]}  Nc4 {[%clk 0:00:25]} 43. Rxb5 {[%clk 0:01:38]}  Ke6 {[%clk 0:00:26]} 44. Ke2 {[%clk 0:01:38]}  Nd6 {[%clk 0:00:25]} 45. Rb6 {[%clk 0:01:35]}  Ke7 {[%clk 0:00:25]} 46. Kd3 {[%clk 0:01:34]}  Ne4 {[%clk 0:00:23]} 47. Kd4 {[%clk 0:01:33]}  Nf6 {[%clk 0:00:20]} 48. Rb7+ {[%clk 0:01:32]}  Kf8 {[%clk 0:00:20]} 49. g4 {[%clk 0:01:32]}  h6 {[%clk 0:00:17]} 50. g5 {[%clk 0:01:33]}  hxg5 {[%clk 0:00:18]} 51. fxg5 {[%clk 0:01:34]}  Ne4 {[%clk 0:00:18]} 52. h4 {[%clk 0:01:34]}  Ng3 {[%clk 0:00:17]} 53. Kxd5 {[%clk 0:01:33]}  Nf5 {[%clk 0:00:17]} 54. Rb4 {[%clk 0:01:33]}  Kf7 {[%clk 0:00:16]} 55. Ke5 {[%clk 0:01:31]}  Ng3 {[%clk 0:00:15]} 56. Kf4 {[%clk 0:01:29]}  Ne2+ {[%clk 0:00:14]} 57. Kg4 {[%clk 0:01:28]}  Kg6 {[%clk 0:00:15]} 58. h5+ {[%clk 0:01:27]}  Kh7 {[%clk 0:00:15]} 59. Rb8 {[%clk 0:01:24]}  g6 {[%clk 0:00:14]} 60. Rb7+ {[%clk 0:01:24]}  Kg8 {[%clk 0:00:13]} 61. h6 {[%clk 0:01:19]}  Nd4 {[%clk 0:00:13]} 62. Rg7+ {[%clk 0:01:18]}  Kh8 {[%clk 0:00:13]} 63. Rxg6 {[%clk 0:01:18]}  Kh7 {[%clk 0:00:10]} 64. Rd6 {[%clk 0:01:17]} 1-0


[Site "https://www.chess.com"]

[Event "Titled Tuesday Blitz June 27 Late 2023"]
[White "Zamorano, Jorge"]
[Black "Toniutti, Ezio"]
[WhiteFideId "173770"]
[BlackFideId "113034"]
[WhiteElo "2665"]
[BlackElo "2480"]
[Result "0-1"]
[Round "3"]
[TimeControl "180+2"]
[Date "2023.06.27"]
[WhiteClock "0:00:09"]
[BlackClock "0:01:30"]
[Board "80"]

1. d4 {[%clk 0:00:48]}  d5 {[%clk 0:02:57]} 2. c4 {[%clk 0:00:46]}  c6 {[%clk 0:02:57]} 3. Nf3 {[%clk 0:00:46]}  Nf6 {[%clk 0:02:57]} 4. Nc3 {[%clk 0:00:47]}  dxc4 {[%clk 0:02:54]} 5. a4 {[%clk 0:00:47]}  Bf5 {[%clk 0:02:52]} 6. e3 {[%clk 0:00:47]}  e6 {[%clk 0:02:50]} 7. Bxc4 {[%clk 0:00:48]}  Bb4 {[%clk 0:02:50]} 8. O-O {[%clk 0:00:48]}  O-O {[%clk 0:02:48]} 9. Qe2 {[%clk 0:00:49]}  Bg6 {[%clk 0:02:45]} 10. Ne5 {[%clk 0:00:48]}  Nbd7 {[%clk 0:02:44]} 11. Nxg6 {[%clk 0:00:48]}  hxg6 {[%clk 0:02:45]} 12. Rd1 {[%clk 0:00:47]}  Qc7 {[%clk 0:02:42]} 13. Bd2 {[%clk 0:00:39]}  Rad8 {[%clk 0:02:38]} 14. Rac1 {[%clk 0:00:37]}  Qa5 {[%clk 0:02:30]} 15. Bb3 {[%clk 0:00:36]}  e5 {[%clk 0:02:27]} 16. h3 {[%clk 0:00:27]}  Rfe8 {[%clk 0:02:23]} 17. Qc4 {[%clk 0:00:27]}  Re7 {[%clk 0:02:20]} 18. Be1 {[%clk 0:00:27]}  Nb6 {[%clk 0:02:16]} 19. Qd3 {[%clk 0:00:23]}  exd4 {[%clk 0:02:15]} 20. exd4 {[%clk 0:00:23]}  Nbd5 {[%clk 0:02:10]} 21. Nxd5 {[%clk 0:00:21]}  Nxd5 {[%clk 0:02:07]} 22. Bxb4 {[%clk 0:00:21]}  Qxb4 {[%clk 0:02:03]} 23. Rc4 {[%clk 0:00:21]}  Re1+ {[%clk 0:01:58]} 24. Kh2 {[%clk 0:00:22]}  Qd6+ {[%clk 0:01:55]} 25. g3 {[%clk 0:00:21]}  Rde8 {[%clk 0:01:50]} 26. Rcc1 {[%clk 0:00:19]}  Qf6 {[%clk 0:01:38]} 27. Kg2 {[%clk 0:00:17]}  R1e2 {[%clk 0:01:34]} 28. Qf3 {[%clk 0:00:09]}  Ne3+ {[%clk 0:01:30]} 0-1


[Site "https://www.chess.com"]

[Event "Titled Tuesday Blitz June 27 Late 2023"]
[White "Kovalevsky, Stanislav"]
[Black "Stoleriu, George"]
[WhiteFideId "13508598"]
[BlackFideId "1227505"]
[WhiteElo "2477"]
[BlackElo "2660"]
[Result "0-1"]
[Round "3"]
[TimeControl "180+2"]
[Date "2023.06.27"]
[WhiteClock "0:00:04"]
[BlackClock "0:00:22"]
[Board "81"]

1. c4 {[%clk 0:03:00]}  e5 {[%clk 0:02:59]} 2. Nc3 {[%clk 0:03:00]}  Nc6 {[%clk 0:03:00]} 3. g3 {[%clk 0:03:00]}  g6 {[%clk 0:03:01]} 4. Bg2 {[%clk 0:03:01]}  Bg7 {[%clk 0:03:02]} 5. h4 {[%clk 0:03:01]}  h5 {[%clk 0:03:00]} 6. d3 {[%clk 0:03:02]}  d6 {[%clk 0:02:59]} 7. Nf3 {[%clk 0:03:02]}  Bg4 {[%clk 0:02:59]} 8. Nd5 {[%clk 0:03:00]}  Nge7 {[%clk 0:02:58]} 9. Bg5 {[%clk 0:02:59]}  O-O {[%clk 0:02:50]} 10. Nf6+ {[%clk 0:02:47]}  Kh8 {[%clk 0:02:46]} 11. Qd2 {[%clk 0:02:22]}  Bxf3 {[%clk 0:02:39]} 12. Bxf3 {[%clk 0:02:21]}  Nd4 {[%clk 0:02:40]} 13. Bxb7 {[%clk 0:02:04]}  Rb8 {[%clk 0:02:40]} 14. Bg2 {[%clk 0:01:55]}  Ne6 {[%clk 0:02:35]} 15. g4 {[%clk 0:01:54]}  c6 {[%clk 0:01:33]} 16. gxh5 {[%clk 0:01:36]}  Qc7 {[%clk 0:01:33]} 17. hxg6 {[%clk 0:00:32]}  fxg6 {[%clk 0:01:18]} 18. Ng4 {[%clk 0:00:23]}  e4 {[%clk 0:01:11]} 19. Rb1 {[%clk 0:00:20]}  exd3 {[%clk 0:01:06]} 20. Qxd3 {[%clk 0:00:20]}  Nf4 {[%clk 0:01:02]} 21. Bxf4 {[%clk 0:00:19]}  Rxf4 {[%clk 0:01:03]} 22. Bf3 {[%clk 0:00:19]}  Qa5+ {[%clk 0:01:01]} 23. Kf1 {[%clk 0:00:19]}  Qf5 {[%clk 0:01:01]} 24. Qxf5 {[%clk 0:00:17]}  gxf5 {[%clk 0:01:00]} 25. Ne3 {[%clk 0:00:17]}  Rxb2 {[%clk 0:01:00]} 26. Rxb2 {[%clk 0:00:17]}  Bxb2 {[%clk 0:01:01]} 27. h5 {[%clk 0:00:17]}  Rd4 {[%clk 0:00:59]} 28. Ke1 {[%clk 0:00:16]}  Bc3+ {[%clk 0:01:00]} 29. Kf1 {[%clk 0:00:16]}  Rd2 {[%clk 0:01:00]} 30. h6 {[%clk 0:00:16]}  Bd4 {[%clk 0:01:01]} 31. Kg2 {[%clk 0:00:16]}  Bxe3 {[%clk 0:01:01]} 32. fxe3 {[%clk 0:00:17]}  Rxa2 {[%clk 0:01:01]} 33. Rh5 {[%clk 0:00:16]}  Rc2 {[%clk 0:00:56]} 34. Rg5 {[%clk 0:00:17]}  Rxc4 {[%clk 0:00:51]} 35. Rg7 {[%clk 0:00:17]}  Ng8 {[%clk 0:00:50]} 36. Rxa7 {[%clk 0:00:16]}  Nxh6 {[%clk 0:00:51]} 37. Rc7 {[%clk 0:00:15]}  Ng4 {[%clk 0:00:48]} 38. Rxc6 {[%clk 0:00:14]}  Nxe3+ {[%clk 0:00:46]} 39. Kg3 {[%clk 0:00:14]}  f4+ {[%clk 0:00:29]} 40. Kf2 {[%clk 0:00:14]}  Rd4 {[%clk 0:00:24]} 41. Rc7 {[%clk 0:00:13]}  Rd1 {[%clk 0:00:23]} 42. Bg2 {[%clk 0:00:13]}  Nf5 {[%clk 0:00:19]} 43. Be4 {[%clk 0:00:12]}  Ng3 {[%clk 0:00:18]} 44. Bf3 {[%clk 0:00:09]}  Rf1+ {[%clk 0:00:18]} 45. Kg2 {[%clk 0:00:09]}  Re1 {[%clk 0:00:18]} 46. Kh3 {[%clk 0:00:09]}  Nxe2 {[%clk 0:00:18]} 47. Bxe2 {[%clk 0:00:09]}  Rxe2 {[%clk 0:00:19]} 48. Kg4 {[%clk 0:00:09]}  Re4 {[%clk 0:00:19]} 49. Rd7 {[%clk 0:00:09]}  Rd4 {[%clk 0:00:20]} 50. Kf3 {[%clk 0:00:09]}  Kg8 {[%clk 0:00:20]} 51. Kg4 {[%clk 0:00:07]}  Kf8 {[%clk 0:00:21]} 52. Ra7 {[%clk 0:00:07]}  Ke8 {[%clk 0:00:21]} 53. Kf3 {[%clk 0:00:06]}  Rc4 {[%clk 0:00:20]} 54. Kg4 {[%clk 0:00:05]}  d5 {[%clk 0:00:20]} 55. Kf3 {[%clk 0:00:06]}  Re4 {[%clk 0:00:20]} 56. Rb7 {[%clk 0:00:06]}  Rd4 {[%clk 0:00:20]} 57. Ra7 {[%clk 0:00:06]}  Rc4 {[%clk 0:00:18]} 58. Rb7 {[%clk 0:00:06]}  Kd8 {[%clk 0:00:19]} 59. Rh7 {[%clk 0:00:06]}  Re4 {[%clk 0:00:18]} 60. Ra7 {[%clk 0:00:06]}  Re7 {[%clk 0:00:17]} 61. Rxe7 {[%clk 0:00:04]}  Kxe7 {[%clk 0:00:18]} 62. Kxf4 {[%clk 0:00:04]}  Kd6 {[%clk 0:00:19]} 63. Kf3 {[%clk 0:00:05]}  Kc5 {[%clk 0:00:19]} 64. Ke3 {[%clk 0:00:06]}  Kc4 {[%clk 0:00:19]} 65. Ke2 {[%clk 0:00:05]}  Kc3 {[%clk 0:00:19]} 66. Ke1 {[%clk 0:00:05]}  Kc2 {[%clk 0:00:19]} 67. Ke2 {[%clk 0:00:04]}  d4 {[%clk 0:00:20]} 68. Kf3 {[%clk 0:00:04]}  d3 {[%clk 0:00:21]} 69. Ke4 {[%clk 0:00:04]}  d2 {[%clk 0:00:22]} 0-1


[Site "https://www.chess.com"]

[Event "Titled Tuesday Blitz June 27 Late 2023"]
[White "Manukyan, Sargis A."]
[Black "Haitin, Ilja"]
[WhiteFideId "13303970"]
[BlackFideId "4501764"]
[WhiteElo "2655"]
[BlackElo "2476"]
[Result "1-0"]
[Round "3"]
[TimeControl "180+2"]
[Date "2023.06.27"]
[WhiteClock "0:00:45"]
[BlackClock "0:00:01"]
[Board "82"]

1. d4 {[%clk 0:03:00]}  Nf6 {[%clk 0:02:38]} 2. c4 {[%clk 0:02:59]}  e6 {[%clk 0:02:37]} 3. Nc3 {[%clk 0:02:59]}  Bb4 {[%clk 0:02:36]} 4. a3 {[%clk 0:03:00]}  Bxc3+ {[%clk 0:02:32]} 5. bxc3 {[%clk 0:03:01]}  b6 {[%clk 0:02:30]} 6. e3 {[%clk 0:03:02]}  Bb7 {[%clk 0:02:31]} 7. f3 {[%clk 0:03:02]}  c5 {[%clk 0:02:31]} 8. Bd3 {[%clk 0:03:02]}  Nc6 {[%clk 0:02:30]} 9. Ne2 {[%clk 0:03:02]}  Rc8 {[%clk 0:02:30]} 10. O-O {[%clk 0:03:03]}  O-O {[%clk 0:02:29]} 11. e4 {[%clk 0:03:03]}  Ne8 {[%clk 0:02:26]} 12. Ng3 {[%clk 0:03:02]}  e5 {[%clk 0:02:20]} 13. d5 {[%clk 0:02:59]}  Na5 {[%clk 0:02:20]} 14. f4 {[%clk 0:02:59]}  exf4 {[%clk 0:02:11]} 15. Bxf4 {[%clk 0:02:48]}  Ba6 {[%clk 0:02:06]} 16. Qe2 {[%clk 0:02:26]}  d6 {[%clk 0:01:39]} 17. e5 {[%clk 0:02:24]}  dxe5 {[%clk 0:01:36]} 18. Bxe5 {[%clk 0:02:25]}  Nd6 {[%clk 0:01:16]} 19. Qg4 {[%clk 0:01:46]}  g6 {[%clk 0:01:04]} 20. Bf6 {[%clk 0:01:23]}  Qc7 {[%clk 0:00:51]} 21. Qg5 {[%clk 0:01:11]}  Ne8 {[%clk 0:00:37]} 22. Be5 {[%clk 0:00:50]}  f6 {[%clk 0:00:16]} 23. Rxf6 {[%clk 0:00:47]}  Qe7 {[%clk 0:00:08]} 24. Rxg6+ {[%clk 0:00:45]}  hxg6 {[%clk 0:00:01]} 25. Qxe7 {[%clk 0:00:45]} 1-0


[Site "https://www.chess.com"]

[Event "Titled Tuesday Blitz June 27 Late 2023"]
[White "Weishaeutel, Moritz"]
[Black "Camacho Collados, Marcos"]
[WhiteFideId "12967300"]
[BlackFideId "2266237"]
[WhiteElo "2652"]
[BlackElo "2468"]
[Result "0-1"]
[Round "3"]
[TimeControl "180+2"]
[Date "2023.06.27"]
[WhiteClock "0:00:10"]
[BlackClock "0:01:45"]
[Board "84"]

1. e4 {[%clk 0:03:00]}  c5 {[%clk 0:02:59]} 2. d4 {[%clk 0:03:01]}  cxd4 {[%clk 0:02:59]} 3. c3 {[%clk 0:03:01]}  dxc3 {[%clk 0:02:59]} 4. Nxc3 {[%clk 0:03:02]}  Nc6 {[%clk 0:02:59]} 5. Nf3 {[%clk 0:03:03]}  e6 {[%clk 0:02:59]} 6. Bc4 {[%clk 0:03:04]}  Nge7 {[%clk 0:02:57]} 7. O-O {[%clk 0:03:04]}  Ng6 {[%clk 0:02:56]} 8. Nd5 {[%clk 0:02:45]}  Be7 {[%clk 0:02:49]} 9. Nxe7 {[%clk 0:02:39]}  Qxe7 {[%clk 0:02:50]} 10. Re1 {[%clk 0:02:32]}  O-O {[%clk 0:02:49]} 11. e5 {[%clk 0:02:32]}  Qc5 {[%clk 0:02:47]} 12. Bd3 {[%clk 0:02:28]}  f5 {[%clk 0:02:28]} 13. exf6 {[%clk 0:02:13]}  Rxf6 {[%clk 0:02:27]} 14. Be3 {[%clk 0:02:08]}  Qh5 {[%clk 0:02:25]} 15. Qd2 {[%clk 0:01:55]}  Rxf3 {[%clk 0:02:21]} 16. gxf3 {[%clk 0:01:44]}  Nh4 {[%clk 0:02:21]} 17. Be2 {[%clk 0:01:40]}  Ne5 {[%clk 0:02:20]} 18. Bf4 {[%clk 0:01:23]}  Qg6+ {[%clk 0:02:10]} 19. Bg3 {[%clk 0:01:20]}  Nhxf3+ {[%clk 0:02:09]} 20. Kh1 {[%clk 0:00:39]}  Nxd2 {[%clk 0:02:08]} 21. Bxe5 {[%clk 0:00:40]}  Qe4+ {[%clk 0:02:08]} 22. f3 {[%clk 0:00:40]}  Qxe5 {[%clk 0:02:04]} 23. Rad1 {[%clk 0:00:40]}  Qe3 {[%clk 0:02:00]} 24. Bf1 {[%clk 0:00:38]}  Qxf3+ {[%clk 0:01:54]} 25. Bg2 {[%clk 0:00:39]}  Qf2 {[%clk 0:01:54]} 26. Re5 {[%clk 0:00:34]}  d5 {[%clk 0:01:51]} 27. Rg5 {[%clk 0:00:23]}  Bd7 {[%clk 0:01:50]} 28. Rg1 {[%clk 0:00:23]}  g6 {[%clk 0:01:47]} 29. Rg3 {[%clk 0:00:17]}  Rf8 {[%clk 0:01:46]} 30. Bh3 {[%clk 0:00:16]}  d4 {[%clk 0:01:45]} 31. Bg4 {[%clk 0:00:10]}  Bc6+ {[%clk 0:01:45]} 0-1


[Site "https://www.chess.com"]

[Event "Titled Tuesday Blitz June 27 Late 2023"]
[White "Dobre, Claudiu-Cristian"]
[Black "Lamard, Guillaume"]
[WhiteFideId "1211854"]
[BlackFideId "600261"]
[WhiteElo "2462"]
[BlackElo "2647"]
[Result "0-1"]
[Round "3"]
[TimeControl "180+2"]
[Date "2023.06.27"]
[WhiteClock "0:00:00"]
[BlackClock "0:00:06"]
[Board "86"]

1. e4 {[%clk 0:02:56]}  c6 {[%clk 0:02:58]} 2. Nf3 {[%clk 0:02:55]}  d5 {[%clk 0:02:59]} 3. exd5 {[%clk 0:02:55]}  cxd5 {[%clk 0:02:59]} 4. Ne5 {[%clk 0:02:56]}  Nc6 {[%clk 0:02:58]} 5. Bb5 {[%clk 0:02:45]}  Bd7 {[%clk 0:02:57]} 6. Nxd7 {[%clk 0:02:44]}  Qxd7 {[%clk 0:02:57]} 7. d4 {[%clk 0:02:26]}  a6 {[%clk 0:02:57]} 8. Be2 {[%clk 0:02:25]}  Nf6 {[%clk 0:02:57]} 9. O-O {[%clk 0:02:19]}  e6 {[%clk 0:02:57]} 10. Bf4 {[%clk 0:02:02]}  Bd6 {[%clk 0:02:57]} 11. Bg3 {[%clk 0:01:59]}  h5 {[%clk 0:02:54]} 12. Bh4 {[%clk 0:01:38]}  Qc7 {[%clk 0:02:49]} 13. h3 {[%clk 0:01:33]}  Ne4 {[%clk 0:02:32]} 14. Nd2 {[%clk 0:01:12]}  Nxd2 {[%clk 0:02:31]} 15. Qxd2 {[%clk 0:01:12]}  Bf4 {[%clk 0:02:31]} 16. Qd3 {[%clk 0:01:08]}  g5 {[%clk 0:01:51]} 17. Bg3 {[%clk 0:01:03]}  h4 {[%clk 0:01:52]} 18. Bxf4 {[%clk 0:01:02]}  Qxf4 {[%clk 0:01:52]} 19. c3 {[%clk 0:00:58]}  Kf8 {[%clk 0:01:48]} 20. Qe3 {[%clk 0:00:58]}  Qxe3 {[%clk 0:01:38]} 21. fxe3 {[%clk 0:00:58]}  Kg7 {[%clk 0:01:39]} 22. a4 {[%clk 0:00:52]}  b6 {[%clk 0:01:03]} 23. Bd3 {[%clk 0:00:50]}  f5 {[%clk 0:01:00]} 24. Bxf5 {[%clk 0:00:26]}  exf5 {[%clk 0:00:58]} 25. Rxf5 {[%clk 0:00:26]}  Kg6 {[%clk 0:00:46]} 26. Raf1 {[%clk 0:00:25]}  Rac8 {[%clk 0:00:40]} 27. Rxd5 {[%clk 0:00:23]}  Rhd8 {[%clk 0:00:38]} 28. Rdf5 {[%clk 0:00:19]}  Re8 {[%clk 0:00:27]} 29. Rf6+ {[%clk 0:00:19]}  Kh5 {[%clk 0:00:26]} 30. R1f3 {[%clk 0:00:18]}  b5 {[%clk 0:00:21]} 31. axb5 {[%clk 0:00:16]}  axb5 {[%clk 0:00:22]} 32. Kf2 {[%clk 0:00:17]}  b4 {[%clk 0:00:22]} 33. c4 {[%clk 0:00:16]}  Na5 {[%clk 0:00:21]} 34. c5 {[%clk 0:00:13]}  Nc4 {[%clk 0:00:20]} 35. Ke2 {[%clk 0:00:07]}  Nxb2 {[%clk 0:00:17]} 36. R3f5 {[%clk 0:00:06]}  Nc4 {[%clk 0:00:16]} 37. Kd3 {[%clk 0:00:03]}  Nxe3 {[%clk 0:00:15]} 38. Rf3 {[%clk 0:00:02]}  Nxg2 {[%clk 0:00:15]} 39. Kc4 {[%clk 0:00:02]}  Rb8 {[%clk 0:00:13]} 40. Rb3 {[%clk 0:00:01]}  Nf4 {[%clk 0:00:09]} 41. c6 {[%clk 0:00:00]}  Nxh3 {[%clk 0:00:06]} 0-1


[Site "https://www.chess.com"]

[Event "Titled Tuesday Blitz June 27 Late 2023"]
[White "Titichoca Daza, Daniel"]
[Black "Liyanage, Ranindu Dilshan"]
[WhiteFideId "3309550"]
[BlackFideId "9915834"]
[WhiteElo "2460"]
[BlackElo "2645"]
[Result "1-0"]
[Round "3"]
[TimeControl "180+2"]
[Date "2023.06.27"]
[WhiteClock "0:00:52"]
[BlackClock "0:00:44"]
[Board "87"]

1. e4 {[%clk 0:03:00]}  c5 {[%clk 0:02:59]} 2. Nc3 {[%clk 0:03:00]}  Nc6 {[%clk 0:02:56]} 3. Nf3 {[%clk 0:03:00]}  e6 {[%clk 0:02:44]} 4. d4 {[%clk 0:03:00]}  cxd4 {[%clk 0:02:45]} 5. Nxd4 {[%clk 0:03:01]}  Qc7 {[%clk 0:02:45]} 6. Be3 {[%clk 0:03:00]}  a6 {[%clk 0:02:44]} 7. a3 {[%clk 0:02:59]}  b5 {[%clk 0:02:43]} 8. f4 {[%clk 0:02:58]}  Bb7 {[%clk 0:02:42]} 9. Qf3 {[%clk 0:02:55]}  Nf6 {[%clk 0:02:41]} 10. Bd3 {[%clk 0:02:53]}  Rc8 {[%clk 0:02:30]} 11. O-O {[%clk 0:02:43]}  Bc5 {[%clk 0:02:29]} 12. Nb3 {[%clk 0:02:40]}  Be7 {[%clk 0:02:15]} 13. Qg3 {[%clk 0:02:32]}  d6 {[%clk 0:02:07]} 14. Rae1 {[%clk 0:02:27]}  Nh5 {[%clk 0:01:55]} 15. Qh3 {[%clk 0:02:19]}  Nf6 {[%clk 0:01:53]} 16. Qg3 {[%clk 0:02:19]}  h5 {[%clk 0:01:46]} 17. Kh1 {[%clk 0:02:07]}  h4 {[%clk 0:01:34]} 18. Qh3 {[%clk 0:02:06]}  Na5 {[%clk 0:01:18]} 19. e5 {[%clk 0:01:51]}  Nh5 {[%clk 0:01:03]} 20. Nxa5 {[%clk 0:01:43]}  Qxa5 {[%clk 0:01:02]} 21. f5 {[%clk 0:01:40]}  Kd7 {[%clk 0:00:51]} 22. fxe6+ {[%clk 0:01:36]}  fxe6 {[%clk 0:00:52]} 23. exd6 {[%clk 0:01:24]}  Bxd6 {[%clk 0:00:52]} 24. Rf7+ {[%clk 0:01:20]}  Be7 {[%clk 0:00:50]} 25. Bg5 {[%clk 0:01:17]}  Ng3+ {[%clk 0:00:50]} 26. hxg3 {[%clk 0:00:54]}  hxg3 {[%clk 0:00:50]} 27. Rxe7+ {[%clk 0:00:53]}  Kc6 {[%clk 0:00:44]} 28. R1xe6+ {[%clk 0:00:52]}  Kc5 {[%clk 0:00:44]} 29. Be3# {[%clk 0:00:52]} 1-0


[Site "https://www.chess.com"]

[Event "Titled Tuesday Blitz June 27 Late 2023"]
[White "Ashraf, Artin"]
[Black "Manukian, Artak"]
[WhiteFideId "22514805"]
[BlackFideId "13301373"]
[WhiteElo "2645"]
[BlackElo "2456"]
[Result "1-0"]
[Round "3"]
[TimeControl "180+2"]
[Date "2023.06.27"]
[WhiteClock "0:00:17"]
[BlackClock "0:00:02"]
[Board "88"]

1. e4 {[%clk 0:02:58]}  c6 {[%clk 0:02:59]} 2. d3 {[%clk 0:02:57]}  d5 {[%clk 0:03:00]} 3. Nf3 {[%clk 0:02:57]}  Bg4 {[%clk 0:02:58]} 4. Be2 {[%clk 0:02:50]}  Qc7 {[%clk 0:02:57]} 5. h3 {[%clk 0:02:46]}  Bh5 {[%clk 0:02:56]} 6. Nh4 {[%clk 0:02:47]}  Bg6 {[%clk 0:02:53]} 7. f4 {[%clk 0:02:41]}  f6 {[%clk 0:02:49]} 8. Bh5 {[%clk 0:02:29]}  Kf7 {[%clk 0:02:25]} 9. Qg4 {[%clk 0:02:22]}  Bxh5 {[%clk 0:02:21]} 10. Qxh5+ {[%clk 0:02:21]}  g6 {[%clk 0:02:21]} 11. Nxg6 {[%clk 0:02:11]}  hxg6 {[%clk 0:02:22]} 12. Qxh8 {[%clk 0:02:11]}  dxe4 {[%clk 0:02:04]} 13. O-O {[%clk 0:02:04]}  exd3 {[%clk 0:02:02]} 14. f5 {[%clk 0:01:59]}  gxf5 {[%clk 0:01:27]} 15. Qh5+ {[%clk 0:01:45]}  Kg7 {[%clk 0:01:21]} 16. cxd3 {[%clk 0:01:42]}  e5 {[%clk 0:01:18]} 17. Qxf5 {[%clk 0:01:37]}  Bc5+ {[%clk 0:01:08]} 18. Kh1 {[%clk 0:01:35]}  Nd7 {[%clk 0:01:07]} 19. Nc3 {[%clk 0:01:31]}  Ne7 {[%clk 0:01:00]} 20. Qg4+ {[%clk 0:01:29]}  Kf7 {[%clk 0:01:00]} 21. Qc4+ {[%clk 0:01:15]}  Ke8 {[%clk 0:00:56]} 22. Ne4 {[%clk 0:01:12]}  b5 {[%clk 0:00:43]} 23. Qc2 {[%clk 0:01:02]}  Bd4 {[%clk 0:00:36]} 24. Nxf6+ {[%clk 0:01:01]}  Nxf6 {[%clk 0:00:35]} 25. Rxf6 {[%clk 0:01:01]}  Kd7 {[%clk 0:00:35]} 26. Qb3 {[%clk 0:00:52]}  Rh8 {[%clk 0:00:28]} 27. Qe6+ {[%clk 0:00:49]}  Ke8 {[%clk 0:00:27]} 28. Bg5 {[%clk 0:00:40]}  Qd7 {[%clk 0:00:23]} 29. Raf1 {[%clk 0:00:37]}  Qxe6 {[%clk 0:00:22]} 30. Rxe6 {[%clk 0:00:36]}  Bc5 {[%clk 0:00:23]} 31. Rxe5 {[%clk 0:00:31]}  Bd6 {[%clk 0:00:23]} 32. Rxe7+ {[%clk 0:00:30]}  Bxe7 {[%clk 0:00:22]} 33. Re1 {[%clk 0:00:31]}  Rh7 {[%clk 0:00:23]} 34. h4 {[%clk 0:00:30]}  c5 {[%clk 0:00:20]} 35. g4 {[%clk 0:00:28]}  a5 {[%clk 0:00:19]} 36. h5 {[%clk 0:00:28]}  a4 {[%clk 0:00:18]} 37. h6 {[%clk 0:00:27]}  c4 {[%clk 0:00:17]} 38. Rxe7+ {[%clk 0:00:21]}  Rxe7 {[%clk 0:00:15]} 39. Bxe7 {[%clk 0:00:22]}  Kxe7 {[%clk 0:00:07]} 40. dxc4 {[%clk 0:00:20]}  bxc4 {[%clk 0:00:07]} 41. h7 {[%clk 0:00:20]}  a3 {[%clk 0:00:02]} 42. h8=Q {[%clk 0:00:17]} 1-0


[Site "https://www.chess.com"]